[Event "Late-Titled-Tuesday-Blitz-November-28-2023"]
[Site "Chess.com"]
[Date "2023.11.28"]
[Round "4"]
[White "Mykola-Bortnyk"]
[Black "FontVella8"]
[Result "1/2-1/2"]
[WhiteElo "2996"]
[BlackElo "2583"]
[TimeControl "180+1"]
[EndTime "14:38:43 PST"]
[Termination "Game drawn - insufficient material"]

1. e4 {[%clk 0:03:00.9]} 1... c6 {[%clk 0:02:57.5]} 2. d4 {[%clk 0:02:59]} 2...
d5 {[%clk 0:02:58.4]} 3. exd5 {[%clk 0:02:59.5]} 3... cxd5 {[%clk 0:02:58.9]} 4.
c4 {[%clk 0:03:00.4]} 4... Nf6 {[%clk 0:02:57.8]} 5. Nc3 {[%clk 0:03:01]} 5...
g6 {[%clk 0:02:58.1]} 6. Qb3 {[%clk 0:03:00.2]} 6... Bg7 {[%clk 0:02:57.4]} 7.
cxd5 {[%clk 0:03:00.2]} 7... O-O {[%clk 0:02:57.7]} 8. Bd3 {[%clk 0:02:59.7]}
8... Nbd7 {[%clk 0:02:51.8]} 9. Bg5 {[%clk 0:02:59.7]} 9... Nb6 {[%clk
0:02:51.6]} 10. Bxf6 {[%clk 0:03:00.2]} 10... exf6 {[%clk 0:02:47.9]} 11. Nge2
{[%clk 0:03:00.4]} 11... f5 {[%clk 0:02:43.5]} 12. O-O {[%clk 0:03:00.2]} 12...
Qd6 {[%clk 0:02:24.5]} 13. Rfe1 {[%clk 0:02:31.9]} 13... Rd8 {[%clk 0:02:20.5]}
14. Ng3 {[%clk 0:02:31.7]} 14... Bxd4 {[%clk 0:02:13.1]} 15. Nb5 {[%clk
0:02:23.6]} 15... Qf6 {[%clk 0:01:51.4]} 16. Nxd4 {[%clk 0:02:10.5]} 16... Qxd4
{[%clk 0:01:51.4]} 17. Rad1 {[%clk 0:02:11.3]} 17... Qf6 {[%clk 0:01:39.6]} 18.
a4 {[%clk 0:01:49.5]} 18... Bd7 {[%clk 0:01:32.5]} 19. a5 {[%clk 0:01:27.7]}
19... Ba4 {[%clk 0:01:10.4]} 20. Qb4 {[%clk 0:01:27.9]} 20... Bxd1 {[%clk
0:01:11.1]} 21. axb6 {[%clk 0:01:28]} 21... Qxb6 {[%clk 0:00:55.5]} 22. Qxb6
{[%clk 0:01:15.3]} 22... axb6 {[%clk 0:00:55.9]} 23. Rxd1 {[%clk 0:01:15.6]}
23... Rxd5 {[%clk 0:00:56.4]} 24. Kf1 {[%clk 0:01:00.8]} 24... Ra2 {[%clk
0:00:33.4]} 25. Rd2 {[%clk 0:00:54.6]} 25... Rd4 {[%clk 0:00:15]} 26. Ke2 {[%clk
0:00:40.5]} 26... Rb4 {[%clk 0:00:13.4]} 27. b3 {[%clk 0:00:35.3]} 27... Rxd2+
{[%clk 0:00:13]} 28. Kxd2 {[%clk 0:00:36.2]} 28... Rxb3 {[%clk 0:00:13.6]} 29.
Ne2 {[%clk 0:00:37.1]} 29... Rb2+ {[%clk 0:00:12.2]} 30. Ke3 {[%clk 0:00:37.5]}
30... Kg7 {[%clk 0:00:11.4]} 31. g3 {[%clk 0:00:38.1]} 31... b5 {[%clk 0:00:11]}
32. h4 {[%clk 0:00:38.2]} 32... b4 {[%clk 0:00:11.2]} 33. Bc4 {[%clk 0:00:37.6]}
33... Kf6 {[%clk 0:00:09.3]} 34. Nf4 {[%clk 0:00:34.9]} 34... Rc2 {[%clk
0:00:05.5]} 35. Bd3 {[%clk 0:00:31.9]} 35... Ra2 {[%clk 0:00:04]} 36. Nd5+
{[%clk 0:00:32.4]} 36... Ke5 {[%clk 0:00:03.8]} 37. Nxb4 {[%clk 0:00:33.3]}
37... Ra3 {[%clk 0:00:02.5]} 38. Nc2 {[%clk 0:00:31.2]} 38... Rc3 {[%clk
0:00:01.8]} 39. Kd2 {[%clk 0:00:30.7]} 39... Rc8 {[%clk 0:00:02.5]} 40. f4+
{[%clk 0:00:29]} 40... Kf6 {[%clk 0:00:02.7]} 41. Ne3 {[%clk 0:00:27]} 41... Rd8
{[%clk 0:00:03.3]} 42. Ke2 {[%clk 0:00:26.2]} 42... Ra8 {[%clk 0:00:03.7]} 43.
Bc4 {[%clk 0:00:26.5]} 43... Ra3 {[%clk 0:00:03.3]} 44. Nd5+ {[%clk 0:00:26.3]}
44... Kg7 {[%clk 0:00:02.6]} 45. Ne3 {[%clk 0:00:21.3]} 45... Rc3 {[%clk
0:00:02.4]} 46. Kd2 {[%clk 0:00:21.2]} 46... Ra3 {[%clk 0:00:02.4]} 47. Bd3
{[%clk 0:00:16.4]} 47... Ra5 {[%clk 0:00:01.9]} 48. Nc4 {[%clk 0:00:16.7]} 48...
Ra2+ {[%clk 0:00:02.1]} 49. Ke3 {[%clk 0:00:17.4]} 49... Rg2 {[%clk 0:00:02.7]}
50. Kf3 {[%clk 0:00:17.9]} 50... Ra2 {[%clk 0:00:03.3]} 51. Nd6 {[%clk
0:00:18.3]} 51... Ra3 {[%clk 0:00:03.3]} 52. Ke3 {[%clk 0:00:18.4]} 52... Rb3
{[%clk 0:00:03.7]} 53. Kd4 {[%clk 0:00:17.4]} 53... Rb4+ {[%clk 0:00:03.6]} 54.
Bc4 {[%clk 0:00:16.8]} 54... Rb6 {[%clk 0:00:03.6]} 55. Nxf7 {[%clk 0:00:16.1]}
55... Rb1 {[%clk 0:00:02.1]} 56. Ke3 {[%clk 0:00:09.5]} 56... Rg1 {[%clk
0:00:02.4]} 57. Kf2 {[%clk 0:00:09.6]} 57... Rc1 {[%clk 0:00:03.2]} 58. Be6
{[%clk 0:00:08.2]} 58... Rc6 {[%clk 0:00:03]} 59. Bb3 {[%clk 0:00:04.8]} 59...
Rc3 {[%clk 0:00:03]} 60. Bd5 {[%clk 0:00:04.5]} 60... Rc2+ {[%clk 0:00:03.2]}
61. Kf1 {[%clk 0:00:03.1]} 61... b5 {[%clk 0:00:03.1]} 62. Ne5 {[%clk
0:00:03.2]} 62... b4 {[%clk 0:00:03.5]} 63. Nd3 {[%clk 0:00:02.6]} 63... Rc3
{[%clk 0:00:02.5]} 64. Nxb4 {[%clk 0:00:03]} 64... Rxg3 {[%clk 0:00:02.4]} 65.
Kf2 {[%clk 0:00:02.9]} 65... Rg4 {[%clk 0:00:02.9]} 66. Nd3 {[%clk 0:00:02.2]}
66... Rxh4 {[%clk 0:00:03.3]} 67. Kg3 {[%clk 0:00:03]} 67... Rg4+ {[%clk
0:00:03.9]} 68. Kf2 {[%clk 0:00:03.4]} 68... Kf6 {[%clk 0:00:02.8]} 69. Bf3
{[%clk 0:00:04.1]} 69... Rh4 {[%clk 0:00:02.8]} 70. Kg3 {[%clk 0:00:04.9]} 70...
g5 {[%clk 0:00:02.7]} 71. Bg2 {[%clk 0:00:04]} 71... Rg4+ {[%clk 0:00:02.3]} 72.
Kf3 {[%clk 0:00:04.8]} 72... h5 {[%clk 0:00:02.2]} 73. Bh3 {[%clk 0:00:04.9]}
73... Rh4 {[%clk 0:00:01.7]} 74. Kg3 {[%clk 0:00:03.8]} 74... Rxf4 {[%clk
0:00:01]} 75. Nxf4 {[%clk 0:00:04.1]} 75... gxf4+ {[%clk 0:00:01.6]} 76. Kxf4
{[%clk 0:00:05]} 76... Kg6 {[%clk 0:00:01.9]} 77. Bxf5+ {[%clk 0:00:05.5]} 77...
Kf6 {[%clk 0:00:02.8]} 78. Bh3 {[%clk 0:00:06]} 78... Kf7 {[%clk 0:00:03.7]} 79.
Kg5 {[%clk 0:00:06.5]} 79... Kg7 {[%clk 0:00:04.6]} 80. Kxh5 {[%clk 0:00:07.4]}
1/2-1/2

[Event "Late-Titled-Tuesday-Blitz-November-28-2023"]
[Site "Chess.com"]
[Date "2023.11.28"]
[Round "4"]
[White "Alimpic"]
[Black "2346PL"]
[Result "1/2-1/2"]
[WhiteElo "2509"]
[BlackElo "2369"]
[TimeControl "180+1"]
[EndTime "14:39:15 PST"]
[Termination "Game drawn by repetition"]

1. d4 {[%clk 0:02:59]} 1... f5 {[%clk 0:02:58.4]} 2. Nf3 {[%clk 0:02:51.9]} 2...
Nf6 {[%clk 0:02:58.3]} 3. g3 {[%clk 0:02:51.9]} 3... g6 {[%clk 0:02:58.7]} 4.
Bg2 {[%clk 0:02:52.1]} 4... Bg7 {[%clk 0:02:59.6]} 5. O-O {[%clk 0:02:52.9]}
5... O-O {[%clk 0:03:00]} 6. c4 {[%clk 0:02:53.6]} 6... d6 {[%clk 0:03:00.6]} 7.
Nc3 {[%clk 0:02:54.2]} 7... Qe8 {[%clk 0:03:01.3]} 8. Re1 {[%clk 0:02:52.2]}
8... Qf7 {[%clk 0:03:00.9]} 9. e4 {[%clk 0:02:46.9]} 9... Nxe4 {[%clk
0:02:53.5]} 10. Nxe4 {[%clk 0:02:45.3]} 10... fxe4 {[%clk 0:02:54.2]} 11. Rxe4
{[%clk 0:02:43.9]} 11... Bf5 {[%clk 0:02:53.2]} 12. Ng5 {[%clk 0:02:38.6]} 12...
Qf6 {[%clk 0:02:45.6]} 13. Re1 {[%clk 0:02:35.6]} 13... h6 {[%clk 0:02:33.9]}
14. Nf3 {[%clk 0:01:50.6]} 14... Bg4 {[%clk 0:02:33.6]} 15. Re3 {[%clk
0:01:49.7]} 15... Nc6 {[%clk 0:02:32.9]} 16. h3 {[%clk 0:01:19.5]} 16... Bxf3
{[%clk 0:02:31.7]} 17. Rxf3 {[%clk 0:01:18.4]} 17... Qxd4 {[%clk 0:02:31.7]} 18.
Rxf8+ {[%clk 0:01:15.6]} 18... Rxf8 {[%clk 0:02:31.9]} 19. Qxd4 {[%clk
0:01:14.8]} 19... Bxd4 {[%clk 0:02:26.7]} 20. Be3 {[%clk 0:01:13.6]} 20... Bxe3
{[%clk 0:02:25.6]} 21. fxe3 {[%clk 0:01:14.5]} 21... Kg7 {[%clk 0:02:22.5]} 22.
a3 {[%clk 0:01:05.4]} 22... Ne5 {[%clk 0:02:22]} 23. Rc1 {[%clk 0:01:01]} 23...
b6 {[%clk 0:02:13.2]} 24. b4 {[%clk 0:01:01.4]} 24... g5 {[%clk 0:01:56.7]} 25.
b5 {[%clk 0:00:58.9]} 25... Nd3 {[%clk 0:01:54.5]} 26. Ra1 {[%clk 0:00:50.8]}
26... Nc5 {[%clk 0:01:51.5]} 27. a4 {[%clk 0:00:50]} 27... e5 {[%clk 0:01:43.9]}
28. Bd5 {[%clk 0:00:48.5]} 28... h5 {[%clk 0:01:24.5]} 29. Ra3 {[%clk
0:00:44.9]} 29... g4 {[%clk 0:01:23.3]} 30. hxg4 {[%clk 0:00:42.5]} 30... hxg4
{[%clk 0:01:23.2]} 31. a5 {[%clk 0:00:42.7]} 31... Re8 {[%clk 0:01:11.5]} 32.
axb6 {[%clk 0:00:40.6]} 32... axb6 {[%clk 0:01:11.8]} 33. Ra7 {[%clk 0:00:39.3]}
33... Re7 {[%clk 0:01:11.7]} 34. Kg2 {[%clk 0:00:35.9]} 34... Kf6 {[%clk
0:01:10.4]} 35. Ra8 {[%clk 0:00:35.4]} 35... Rg7 {[%clk 0:01:08.3]} 36. Rf8+
{[%clk 0:00:33.9]} 36... Ke7 {[%clk 0:01:05.1]} 37. Rc8 {[%clk 0:00:31.2]} 37...
Kd7 {[%clk 0:01:03.7]} 38. Rf8 {[%clk 0:00:30.8]} 38... Nd3 {[%clk 0:00:51.4]}
39. Bc6+ {[%clk 0:00:29]} 39... Ke7 {[%clk 0:00:49.2]} 40. Rc8 {[%clk
0:00:27.8]} 40... Kf6 {[%clk 0:00:49.6]} 41. Rf8+ {[%clk 0:00:27.4]} 41... Kg5
{[%clk 0:00:49.6]} 42. e4 {[%clk 0:00:18]} 42... Ne1+ {[%clk 0:00:44.4]} 43. Kf2
{[%clk 0:00:17.1]} 43... Nf3 {[%clk 0:00:43.9]} 44. Rf5+ {[%clk 0:00:16.1]}
44... Kg6 {[%clk 0:00:42.5]} 45. Be8+ {[%clk 0:00:15.7]} 45... Kh7 {[%clk
0:00:40]} 46. Rh5+ {[%clk 0:00:09.7]} 46... Kg8 {[%clk 0:00:40.2]} 47. Bc6
{[%clk 0:00:09.9]} 47... Kf8 {[%clk 0:00:38.6]} 48. Bd5 {[%clk 0:00:09.1]} 48...
Ke7 {[%clk 0:00:38.2]} 49. Rh8 {[%clk 0:00:08.2]} 49... Ng5 {[%clk 0:00:34.9]}
50. Rc8 {[%clk 0:00:05.9]} 50... Kf6 {[%clk 0:00:34.1]} 51. Rf8+ {[%clk
0:00:05.7]} 51... Kg6 {[%clk 0:00:34.6]} 52. Kg2 {[%clk 0:00:05.6]} 52... Nf3
{[%clk 0:00:27.4]} 53. Be6 {[%clk 0:00:03.8]} 53... Kh7 {[%clk 0:00:13.1]} 54.
Bf5+ {[%clk 0:00:03.9]} 54... Kh6 {[%clk 0:00:13.2]} 55. Rh8+ {[%clk 0:00:04.2]}
55... Kg5 {[%clk 0:00:13.6]} 56. Rf8 {[%clk 0:00:04.4]} 56... Nd4 {[%clk
0:00:12.7]} 57. Bc8 {[%clk 0:00:03.5]} 57... Nc2 {[%clk 0:00:11.6]} 58. Be6
{[%clk 0:00:03.4]} 58... Ne3+ {[%clk 0:00:11]} 59. Kf2 {[%clk 0:00:03.2]} 59...
Nc2 {[%clk 0:00:11.9]} 60. Bd5 {[%clk 0:00:03.2]} 60... Rh7 {[%clk 0:00:11.2]}
61. Kg2 {[%clk 0:00:03.4]} 61... Ne3+ {[%clk 0:00:10.6]} 62. Kf2 {[%clk
0:00:03.9]} 62... Nd1+ {[%clk 0:00:10.8]} 63. Ke2 {[%clk 0:00:04.2]} 63... Rh1
{[%clk 0:00:10.8]} 64. Rg8+ {[%clk 0:00:03.9]} 64... Kf6 {[%clk 0:00:11.1]} 65.
Rf8+ {[%clk 0:00:04.4]} 65... Ke7 {[%clk 0:00:10.7]} 66. Rg8 {[%clk 0:00:03.3]}
66... Nc3+ {[%clk 0:00:09.2]} 67. Kd2 {[%clk 0:00:02.9]} 67... Nxd5 {[%clk
0:00:10.1]} 68. cxd5 {[%clk 0:00:03.7]} 68... Rb1 {[%clk 0:00:09.5]} 69. Rg7+
{[%clk 0:00:03.7]} 69... Kd8 {[%clk 0:00:09.4]} 70. Rg8+ {[%clk 0:00:04]} 70...
Kd7 {[%clk 0:00:09.9]} 71. Rg7+ {[%clk 0:00:04.6]} 71... Kc8 {[%clk 0:00:10.3]}
72. Rxg4 {[%clk 0:00:03.8]} 72... Rxb5 {[%clk 0:00:10.4]} 73. Rg8+ {[%clk
0:00:03.8]} 73... Kb7 {[%clk 0:00:09.9]} 74. g4 {[%clk 0:00:03.7]} 74... Rb2+
{[%clk 0:00:10.5]} 75. Ke3 {[%clk 0:00:03.8]} 75... Rb3+ {[%clk 0:00:10.3]} 76.
Kf2 {[%clk 0:00:03.8]} 76... Rb4 {[%clk 0:00:10.2]} 77. Kf3 {[%clk 0:00:04.1]}
77... Rb3+ {[%clk 0:00:09.4]} 78. Kf2 {[%clk 0:00:04.5]} 78... Rb2+ {[%clk
0:00:09.2]} 79. Kf3 {[%clk 0:00:04.7]} 79... Rb3+ {[%clk 0:00:06.1]} 80. Kf2
{[%clk 0:00:05.1]} 1/2-1/2

[Event "Late-Titled-Tuesday-Blitz-November-28-2023"]
[Site "Chess.com"]
[Date "2023.11.28"]
[Round "4"]
[White "SalihEke"]
[Black "kingofthenil"]
[Result "1-0"]
[WhiteElo "2480"]
[BlackElo "2690"]
[TimeControl "180+1"]
[EndTime "14:39:34 PST"]
[Termination "SalihEke won on time"]

1. d4 {[%clk 0:03:00.9]} 1... Nf6 {[%clk 0:02:38.3]} 2. Nf3 {[%clk 0:03:01]}
2... e6 {[%clk 0:02:39.2]} 3. Bf4 {[%clk 0:02:57.3]} 3... c5 {[%clk 0:02:38.7]}
4. c3 {[%clk 0:02:56.2]} 4... Qb6 {[%clk 0:02:36.5]} 5. Qb3 {[%clk 0:02:56.2]}
5... Qxb3 {[%clk 0:02:34.5]} 6. axb3 {[%clk 0:02:57.1]} 6... cxd4 {[%clk
0:02:35.3]} 7. Nxd4 {[%clk 0:02:56.6]} 7... Nd5 {[%clk 0:02:29.2]} 8. Bxb8
{[%clk 0:02:53]} 8... Rxb8 {[%clk 0:02:29.2]} 9. Rxa7 {[%clk 0:02:53.8]} 9...
Bc5 {[%clk 0:02:27.6]} 10. Ra1 {[%clk 0:02:38.2]} 10... O-O {[%clk 0:02:28]} 11.
e3 {[%clk 0:02:37.8]} 11... Bb6 {[%clk 0:02:26.9]} 12. Bd3 {[%clk 0:02:35.9]}
12... Nf6 {[%clk 0:02:27.2]} 13. Nd2 {[%clk 0:02:35.7]} 13... d5 {[%clk
0:02:28.1]} 14. O-O {[%clk 0:02:32.1]} 14... e5 {[%clk 0:02:27.4]} 15. Nb5
{[%clk 0:02:30.5]} 15... Bd7 {[%clk 0:02:25.4]} 16. Rfd1 {[%clk 0:02:23.1]}
16... h5 {[%clk 0:02:17.7]} 17. h3 {[%clk 0:02:22.4]} 17... Rfd8 {[%clk
0:02:16.3]} 18. Bf1 {[%clk 0:02:21]} 18... h4 {[%clk 0:02:13.6]} 19. Nf3 {[%clk
0:02:21.2]} 19... e4 {[%clk 0:02:12.2]} 20. Nfd4 {[%clk 0:02:11.1]} 20... g5
{[%clk 0:01:44.3]} 21. Be2 {[%clk 0:01:37.9]} 21... Ra8 {[%clk 0:01:33]} 22. b4
{[%clk 0:01:33.9]} 22... Kf8 {[%clk 0:01:21.5]} 23. Nb3 {[%clk 0:01:27.8]} 23...
Ke7 {[%clk 0:01:12.9]} 24. Nc5 {[%clk 0:01:13.1]} 24... Bxb5 {[%clk 0:00:56.6]}
25. Bxb5 {[%clk 0:01:12.7]} 25... Rab8 {[%clk 0:00:57.5]} 26. Rd2 {[%clk
0:01:07.4]} 26... g4 {[%clk 0:00:52.1]} 27. hxg4 {[%clk 0:01:07.2]} 27... Nxg4
{[%clk 0:00:53]} 28. Rad1 {[%clk 0:01:06.4]} 28... Nf6 {[%clk 0:00:53.9]} 29.
Nb3 {[%clk 0:00:59.1]} 29... Rg8 {[%clk 0:00:42.1]} 30. Kf1 {[%clk 0:00:58.8]}
30... Rg5 {[%clk 0:00:41.5]} 31. Nd4 {[%clk 0:00:09.1]} 31... Rbg8 {[%clk
0:00:38.3]} 32. f4 {[%clk 0:00:09.8]} 32... exf3 {[%clk 0:00:36.7]} 33. Nxf3
{[%clk 0:00:10.2]} 33... Rg4 {[%clk 0:00:25.6]} 34. Rxd5 {[%clk 0:00:10.1]}
34... Nxd5 {[%clk 0:00:24.7]} 35. Rxd5 {[%clk 0:00:11]} 35... Rxg2 {[%clk
0:00:23.7]} 36. Nxh4 {[%clk 0:00:11.3]} 36... Rxb2 {[%clk 0:00:23.3]} 37. Nf5+
{[%clk 0:00:10.1]} 37... Kf6 {[%clk 0:00:23.7]} 38. Bc4 {[%clk 0:00:10.9]} 38...
Bc7 {[%clk 0:00:20.8]} 39. Nd4 {[%clk 0:00:09.9]} 39... Be5 {[%clk 0:00:17.9]}
40. Rd7 {[%clk 0:00:08.5]} 40... Rg7 {[%clk 0:00:16.3]} 41. Rxb7 {[%clk
0:00:07.1]} 41... Rh7 {[%clk 0:00:16.3]} 42. Bd5 {[%clk 0:00:06.8]} 42... Bg3
{[%clk 0:00:06.7]} 43. b5 {[%clk 0:00:05.6]} 43... Rg7 {[%clk 0:00:05.3]} 44.
Nf3 {[%clk 0:00:04.1]} 44... Rf2+ {[%clk 0:00:03.3]} 45. Ke1 {[%clk 0:00:04]}
45... Rxf3+ {[%clk 0:00:03.4]} 46. Ke2 {[%clk 0:00:04.7]} 46... Rf2+ {[%clk
0:00:04]} 47. Kd3 {[%clk 0:00:04.8]} 47... Ke5 {[%clk 0:00:04.3]} 48. c4 {[%clk
0:00:04.8]} 48... Rb2 {[%clk 0:00:04.2]} 49. Re7+ {[%clk 0:00:05]} 49... Kd6
{[%clk 0:00:04.3]} 50. Rb7 {[%clk 0:00:05.2]} 50... Be5 {[%clk 0:00:04.2]} 51.
Bxf7 {[%clk 0:00:05]} 51... Rg4 {[%clk 0:00:02.4]} 52. Rb6+ {[%clk 0:00:05.4]}
52... Kc5 {[%clk 0:00:02.1]} 53. Rc6+ {[%clk 0:00:06.2]} 53... Kb4 {[%clk
0:00:02.4]} 54. Bd5 {[%clk 0:00:06.9]} 54... Rb3+ {[%clk 0:00:02.7]} 55. Ke2
{[%clk 0:00:07.2]} 55... Rh4 {[%clk 0:00:03.2]} 56. Kf3 {[%clk 0:00:07.7]} 56...
Rb1 {[%clk 0:00:03]} 57. b6 {[%clk 0:00:06.5]} 57... Rf1+ {[%clk 0:00:03.5]} 58.
Ke2 {[%clk 0:00:06.5]} 58... Rb1 {[%clk 0:00:02.8]} 59. b7 {[%clk 0:00:06.9]}
59... Kc3 {[%clk 0:00:01.6]} 60. Re6 {[%clk 0:00:07.5]} 60... Rh2+ {[%clk
0:00:01.2]} 61. Kf3 {[%clk 0:00:08.2]} 61... Bb8 {[%clk 0:00:01.6]} 62. Re8
{[%clk 0:00:08.6]} 62... Ba7 {[%clk 0:00:02]} 63. e4 {[%clk 0:00:08.9]} 63...
Rf2+ {[%clk 0:00:02.1]} 64. Kg4 {[%clk 0:00:09.5]} 64... Rg1+ {[%clk 0:00:02.7]}
65. Kh3 {[%clk 0:00:10]} 65... Rc1 {[%clk 0:00:01.9]} 66. e5 {[%clk 0:00:10.1]}
66... Re2 {[%clk 0:00:01.8]} 67. e6 {[%clk 0:00:09.7]} 67... Re3+ {[%clk
0:00:01.8]} 68. Kg4 {[%clk 0:00:10.2]} 68... Bb8 {[%clk 0:00:01.1]} 69. Kf5
{[%clk 0:00:10.1]} 69... Rf1+ {[%clk 0:00:01.5]} 70. Kg4 {[%clk 0:00:09.8]}
70... Rg3+ {[%clk 0:00:02.4]} 71. Kh4 {[%clk 0:00:09]} 71... Rf2 {[%clk
0:00:03.3]} 72. Rxb8 {[%clk 0:00:07.4]} 72... Rg7 {[%clk 0:00:04]} 73. Kh3
{[%clk 0:00:05.9]} 73... Rf6 {[%clk 0:00:02.5]} 74. Rh8 {[%clk 0:00:06.4]} 74...
Rxb7 {[%clk 0:00:01.1]} 75. Bxb7 {[%clk 0:00:06.5]} 75... Rxe6 {[%clk
0:00:01.7]} 76. Bd5 {[%clk 0:00:07.3]} 76... Rg6 {[%clk 0:00:01.7]} 77. Rh4
{[%clk 0:00:06.4]} 77... Kb4 {[%clk 0:00:01.9]} 78. Rg4 {[%clk 0:00:07.1]} 78...
Rf6 {[%clk 0:00:01.9]} 79. Kg3 {[%clk 0:00:07.7]} 79... Rf1 {[%clk 0:00:02.6]}
80. Rf4 {[%clk 0:00:08.2]} 80... Re1 {[%clk 0:00:02.1]} 81. Kg4 {[%clk
0:00:08.7]} 81... Kc5 {[%clk 0:00:02.6]} 82. Kf5 {[%clk 0:00:09.4]} 82... Kd6
{[%clk 0:00:02.9]} 83. Re4 {[%clk 0:00:10]} 83... Rf1+ {[%clk 0:00:03.4]} 84.
Rf4 {[%clk 0:00:09.9]} 84... Re1 {[%clk 0:00:03.9]} 85. Rf3 {[%clk 0:00:10.5]}
85... Re5+ {[%clk 0:00:04]} 86. Kf4 {[%clk 0:00:10.9]} 86... Rh5 {[%clk
0:00:04.4]} 87. Re3 {[%clk 0:00:11.5]} 87... Rh4+ {[%clk 0:00:04.4]} 88. Kf3
{[%clk 0:00:11.7]} 88... Kc5 {[%clk 0:00:04.1]} 89. Ke2 {[%clk 0:00:12.2]} 89...
Rd4 {[%clk 0:00:03.9]} 90. Rd3 {[%clk 0:00:12.7]} 90... Rg4 {[%clk 0:00:04]} 91.
Kd2 {[%clk 0:00:13.4]} 91... Kb4 {[%clk 0:00:04]} 92. Be6 {[%clk 0:00:09.6]}
92... Re4 {[%clk 0:00:03.7]} 93. Rd6 {[%clk 0:00:10.2]} 93... Kc5 {[%clk
0:00:03.1]} 94. Ra6 {[%clk 0:00:09.1]} 94... Rh4 {[%clk 0:00:01.4]} 95. Kd3
{[%clk 0:00:09.7]} 95... Rf4 {[%clk 0:00:01.1]} 96. Bd5 {[%clk 0:00:08.5]} 96...
Rg4 {[%clk 0:00:01]} 97. Rc6+ {[%clk 0:00:09]} 97... Kb4 {[%clk 0:00:01.2]} 98.
Rc8 {[%clk 0:00:09.4]} 1-0